Cogmind - Beta 12 @@@ ROGUE MODE // 2023.05.23 @ 19:19:27 Player: Mr Goldstein Result: Self-destructed Performance ------------- Evolutions (5) 2500 Regions Visited (9) 1800 Robots Destroyed (0) 0 Value Destroyed (0) 0 Prototype IDs (2) 40 Alien Tech Used (0) 0 Bonus (2932) 2932 TOTAL SCORE: 7272 Bonus ------- Pacifist 1987 Follower Combat Kills 345 Met Zhirov 300 Read Decrypted Archives 300 Cogmind --------- Core Integrity 977/1000 Matter 300/300 Energy 100/100 System Corruption 0% Temperature Cool (0) Movement Core (50) Location -5/Factory Parts ------- > --- POWER (1) -------- (None) > --- PROPULSION (7) --- (None) > --- UTILITY (7) ------ Target Analyzer > --- WEAPON (2) ------- (None) > --- INVENTORY (5) ---- Light Fission Core Improved Gravmag System Improved Cesium-ion Thruster Improved Light Armor Plating Spear Peak State ------------ > --- POWER ------------ (None) > --- PROPULSION ------- Light Treads Light Treads Enhanced Biometal Leg Improved Gravmag System Improved Gravmag System Improved Gravmag System > --- UTILITY ---------- Enhanced Optical Array Target Analyzer Improved Light Armor Plating > --- WEAPON ----------- Improved Arc Thrower > --- INVENTORY -------- Light Fission Core Improved Gravmag System Improved Cesium-ion Thruster Improved Light Armor Plating Spear [Rating: 46] Favorites ----------- Power None Propulsion Improved Gravmag System Treads Light Treads Leg Enhanced Biometal Leg Hover Unit Improved Gravmag System Flight Unit Improved Cesium-ion Thruster Utility Target Analyzer Device Reaction Control System Processor Target Analyzer Protection Improved Light Armor Plating Weapon Improved Arc Thrower Energy Gun Improved Arc Thrower Slashing Weapon Scythe Build | -11 -10 -9 -8 -7 -6 -6 -6 -6 -5 ------- Run | Jun Mat Mat Mat Fac Fac Ext Cet Arc Fac Slots Evolved 10 | . . 2 2 2 2 . . . 2 Power . | . . . . . . . . . . Propulsion 5 | . . 1 1 1 1 . . . 1 Utility 5 | . . 1 1 1 1 . . . 1 Weapon . | . . . . . . . . . . Parts Attached 20 | . . 3 . 3 8 4 . 2 . Power . | . . . . . . . . . . Engine . | . . . . . . . . . . Core . | . . . . . . . . . . Reactor . | . . . . . . . . . . Propulsion 10 | . . . . . 7 2 . 1 . Treads 2 | . . . . . . 2 . . . Leg 1 | . . . . . . . . 1 . Wheel . | . . . . . . . . . . Hover 6 | . . . . . 6 . . . . Flight 1 | . . . . . 1 . . . . Utility 8 | . . 3 . 2 1 2 . . . Device 3 | . . 3 . . . . . . . Storage . | . . . . . . . . . . Processor 2 | . . . . . 1 1 . . . Hackware . | . . . . . . . . . . Protection 3 | . . . . 2 . 1 . . . Artifact . | . . . . . . . . . . Weapon 2 | . . . . 1 . . . 1 . Energy Gun 1 | . . . . . . . . 1 . Energy Cannon . | . . . . . . . . . . Ballistic Gun . | . . . . . . . . . . Ballistic Cannon . | . . . . . . . . . . Launcher . | . . . . . . . . . . Special Weapon . | . . . . . . . . . . Impact Weapon . | . . . . . . . . . . Slashing Weapon 1 | . . . . 1 . . . . . Piercing Weapon . | . . . . . . . . . . Special Melee Weapon . | . . . . . . . . . . Unidentified Prototypes 2 | . . . . . 1 . . 1 . Parts Lost 16 | . . 3 . 2 . 2 1 8 . Power . | . . . . . . . . . . Propulsion 9 | . . . . . . 2 1 6 . Utility 7 | . . 3 . 2 . . . 2 . Weapon . | . . . . . . . . . . Highest Loss Streak 8 | . . 2 . 2 . 1 1 8 . To Critical Strikes 1 | . . . . . . . 1 . . Average Slot Usage (%) 30 | . . 20 . 9 22 48 54 44 5 Treads 4 | . . . . . . 8 13 9 . Hover 14 | . . . . . 16 27 21 15 . Device 2 | . . 20 . . . . . . . Processor 4 | . . . . . 3 6 13 11 5 Protection 3 | . . . . 9 . 4 6 4 . Naked Turns 181 | . 33 22 59 38 29 . . . . Heaviest Build 11 | . . 3 . 2 . 3 3 11 . Greatest Support 40 | 3 3 3 3 3 40 20 3 3 3 Greatest Overweight (x) 3 | . . . . . . . . 3 . Average Overweight (x) . | . . . . . . . . . . Largest Inventory Capacity 5 | 5 5 5 5 5 5 5 5 5 5 Average Capacity 5 | 5 5 5 5 5 5 5 5 5 5 Most Carried 5 | . . 1 1 2 5 5 5 5 5 Average Carried 3 | . . . 1 1 3 5 5 5 5 Final Capacity 5 | 5 5 5 5 5 5 5 5 5 5 Final Carried 5 | . . 1 1 1 5 5 5 5 5 Class Distribution -------------------- 74% | Mutant 25% | Commander-Mutant Dominant Class ---------------- Mutant | -10/Materials Mutant | -9/Materials Mutant | -8/Materials Mutant | -7/Factory Mutant | -6/Factory Commander-Mutant | -6/Extension Mutant | -6/Cetus Mutant | -6/Archives Mutant | -5/Factory Resources | -11 -10 -9 -8 -7 -6 -6 -6 -6 -5 ----------- Run | Jun Mat Mat Mat Fac Fac Ext Cet Arc Fac Matter Collected 328 | 140 . . . . . 183 5 . . Remotely . | . . . . . . . . . . Salvage Created . | . . . . . . . . . . Parts . | . . . . . . . . . . Haulers Intercepted . | . . . . . . . . . . Recyclers Shooed 1 | . . . . . . 1 . . . Parts Field Recycled . | . . . . . . . . . . Retrieved Matter . | . . . . . . . . . . Parts Self-Destructed . | . . . . . . . . . . Prevented . | . . . . . . . . . . Kills | -11 -10 -9 -8 -7 -6 -6 -6 -6 -5 ------- Run | Jun Mat Mat Mat Fac Fac Ext Cet Arc Fac Combat Hostiles Destroyed . | . . . . . . . . . . Classes Destroyed . | . . . . . . . . . . Best Kill Streak . | . . . . . . . . . . Combat Bots Only . | . . . . . . . . . . Max Kills in Single Turn . | . . . . . . . . . . Gunslinging . | . . . . . . . . . . Exploded . | . . . . . . . . . . Melee . | . . . . . . . . . . Uniques/NPCs Destroyed . | . . . . . . . . . . Combat | -11 -10 -9 -8 -7 -6 -6 -6 -6 -5 -------- Run | Jun Mat Mat Mat Fac Fac Ext Cet Arc Fac Damage Taken 2590 | 2 54 217 242 568 144 202 244 894 23 Core 1349 | 2 54 100 242 466 58 84 29 291 23 Absorbed by Shields 30 | . . . . . . 18 12 . . Redirected to Shielding 85 | . . . . 85 . . . . . Core Remaining (%) 64 | 99 77 75 56 33 . . . 45 . Volleys Fired . | . . . . . . . . . . Largest . | . . . . . . . . . . Hottest . | . . . . . . . . . . Shots Fired . | . . . . . . . . . . Gun . | . . . . . . . . . . Cannon . | . . . . . . . . . . Launcher . | . . . . . . . . . . Special . | . . . . . . . . . . Kinetic . | . . . . . . . . . . Thermal . | . . . . . . . . . . Explosive . | . . . . . . . . . . Electromagnetic . | . . . . . . . . . . Robot Hit Streak . | . . . . . . . . . . Robot Miss Streak . | . . . . . . . . . . Penetration Max . | . . . . . . . . . . Secondary Targets . | . . . . . . . . . . Shots Hit Robots . | . . . . . . . . . . Core Hits . | . . . . . . . . . . Critical Kills . | . . . . . . . . . . Critical Parts Destroyed . | . . . . . . . . . . Critical Strikes . | . . . . . . . . . . Melee Attacks 4 | . . . . 4 . . . . . Impact . | . . . . . . . . . . Slashing 4 | . . . . 4 . . . . . Piercing . | . . . . . . . . . . Sneak Attacks . | . . . . . . . . . . Combat Hostiles . | . . . . . . . . . . Follow-up Attacks . | . . . . . . . . . . Damage Inflicted 35 | 5 9 . . . 12 7 2 . . Guns . | . . . . . . . . . . Cannons . | . . . . . . . . . . Explosions . | . . . . . . . . . . Melee . | . . . . . . . . . . Ramming 35 | 5 9 . . . 12 7 2 . . Kinetic . | . . . . . . . . . . Thermal . | . . . . . . . . . . Explosive . | . . . . . . . . . . Electromagnetic . | . . . . . . . . . . Impact . | . . . . . . . . . . Slashing . | . . . . . . . . . . Piercing . | . . . . . . . . . . Highest Corruption 2 | . . . . 2 . . . . . Average Corruption 1 | . . . . 1 . . . . . Corruption Purged . | . . . . . . . . . . Corruption Blocked . | . . . . . . . . . . Effects 1 | . . . . 1 . . . . . Data Loss (minor) 1 | . . . . 1 . . . . . Overload Shots . | . . . . . . . . . . Overflow Damage . | . . . . . . . . . . Projectiles . | . . . . . . . . . . Explosions . | . . . . . . . . . . Melee . | . . . . . . . . . . Knockbacks . | . . . . . . . . . . Impact . | . . . . . . . . . . Kinetic . | . . . . . . . . . . Secondary . | . . . . . . . . . . Self-Inflicted Damage 15 | 2 4 . . . 6 2 1 . . Shots . | . . . . . . . . . . Rammed 9 | 1 2 . . . 1 3 2 . . Targets Rammed 9 | 1 2 . . . 1 3 2 . . Kicked . | . . . . . . . . . . Crushed . | . . . . . . . . . . Highest Temperature 13 | . . . . . . . . 13 . Average Temperature 13 | . . . . . . . . 13 . Received Heat Transfer 564 | . 24 96 135 . 30 42 36 201 . Siege Activations . | . . . . . . . . . . Robots Corrupted . | . . . . . . . . . . Combat Hostiles . | . . . . . . . . . . Parts Fried . | . . . . . . . . . . Impact Corruptions . | . . . . . . . . . . Robots Melted . | . . . . . . . . . . Combat Hostiles . | . . . . . . . . . . Parts Melted . | . . . . . . . . . . Heat Transferred . | . . . . . . . . . . Parts Sabotaged . | . . . . . . . . . . Parts Stolen . | . . . . . . . . . . Parts Stripped . | . . . . . . . . . . Power Chain Reactions . | . . . . . . . . . . Missiles Intercepted . | . . . . . . . . . . Alert | -11 -10 -9 -8 -7 -6 -6 -6 -6 -5 ------- Run | Jun Mat Mat Mat Fac Fac Ext Cet Arc Fac Peak Influence 438 | . 15 95 144 125 124 438 259 93 4 Initial 244 | . . 5 39 65 60 60 244 93 4 Average 144 | . 11 34 87 90 90 258 246 74 4 Maximum Alert Level 2 | . . . . . . 2 1 . . Low Security (%) 76 | 100 100 100 100 100 100 47 . 100 100 Level 1 18 | . . . . . . 40 100 . . Level 2 4 | . . . . . . 12 . . . Level 3 . | . . . . . . . . . . Level 4 . | . . . . . . . . . . Level 5 . | . . . . . . . . . . High Security . | . . . . . . . . . . Max Security . | . . . . . . . . . . Squads Dispatched 6 | . 1 . 2 2 . 1 . . . Investigation 2 | . 1 . . 1 . . . . . Extermination . | . . . . . . . . . . Reinforcement 4 | . . . 2 1 . 1 . . . Assault . | . . . . . . . . . . Garrison . | . . . . . . . . . . Intercept . | . . . . . . . . . . Searches Triggered . | . . . . . . . . . . Construction Impeded . | . . . . . . . . . . Haulers Reinforced . | . . . . . . . . . . Active Scanning Responses . | . . . . . . . . . . Cargo Convoy Interrupts . | . . . . . . . . . . Stealth | -11 -10 -9 -8 -7 -6 -6 -6 -6 -5 --------- Run | Jun Mat Mat Mat Fac Fac Ext Cet Arc Fac Distress Signals 7 | . . 2 2 . . 2 1 . . Communications Jammed . | . . . . . . . . . . Distress Signals . | . . . . . . . . . . Times Spotted 99 | . 9 11 15 12 4 17 5 26 . Peak Tracking Total 20 | . 9 10 18 11 2 5 5 20 . Tactical Retreats 5 | . . 1 2 1 1 . . . . Traps | -11 -10 -9 -8 -7 -6 -6 -6 -6 -5 ------- Run | Jun Mat Mat Mat Fac Fac Ext Cet Arc Fac Traps Triggered 7 | . 1 . . 1 . 4 . . 1 Indirectly . | . . . . . . . . . . Trap Hack Attempts . | . . . . . . . . . . Triggered . | . . . . . . . . . . Disarmed . | . . . . . . . . . . Reprogrammed . | . . . . . . . . . . Reused . | . . . . . . . . . . Traps Extracted . | . . . . . . . . . . Installed . | . . . . . . . . . . Triggered . | . . . . . . . . . . Machines | -11 -10 -9 -8 -7 -6 -6 -6 -6 -5 ---------- Run | Jun Mat Mat Mat Fac Fac Ext Cet Arc Fac Machines Disabled . | . . . . . . . . . . Max in Single Turn . | . . . . . . . . . . Machines Repaired . | . . . . . . . . . . Machines Sabotaged . | . . . . . . . . . . Overloaded Fab Kills . | . . . . . . . . . . Hacking | -11 -10 -9 -8 -7 -6 -6 -6 -6 -5 --------- Run | Jun Mat Mat Mat Fac Fac Ext Cet Arc Fac Machines Accessed 11 | . . . . 2 1 6 1 1 . Terminals 10 | . . . . 2 1 6 1 . . Fabricators . | . . . . . . . . . . Repair Stations . | . . . . . . . . . . Recycling Units . | . . . . . . . . . . Scanalyzers . | . . . . . . . . . . Garrison Access . | . . . . . . . . . . Total Hacks 43 | . . . . 4 1 11 2 25 . Successful 32 | . . . . 1 1 5 . 25 . Failed 11 | . . . . 3 . 6 2 . . Catastrophic 1 | . . . . . . 1 . . . Database Lockouts . | . . . . . . . . . . Manual 5 | . . . . 3 . 1 1 . . Terminals 18 | . . . . 4 1 11 2 . . Fabricators . | . . . . . . . . . . Repair Stations . | . . . . . . . . . . Recycling Units . | . . . . . . . . . . Scanalyzers . | . . . . . . . . . . Garrison Access . | . . . . . . . . . . Terminal Hacks 31 | . . . . 1 1 4 . 25 . Record 25 | . . . . . . . . 25 . Open Door 5 | . . . . . 1 4 . . . Level Access Points 1 | . . . . 1 . . . . . Fabricator Hacks . | . . . . . . . . . . Repair Station Hacks . | . . . . . . . . . . Recycling Unit Hacks . | . . . . . . . . . . Scanalyzer . | . . . . . . . . . . Garrison Access Hacks . | . . . . . . . . . . Unauthorized Hacks 1 | . . . . . . 1 . . . Terminals 1 | . . . . . . 1 . . . Disrupt 1 | . . . . . . 1 . . . Fabricators . | . . . . . . . . . . Repair Stations . | . . . . . . . . . . Recycling Units . | . . . . . . . . . . Scanalyzers . | . . . . . . . . . . Garrison Access . | . . . . . . . . . . Data Cores Recovered . | . . . . . . . . . . Used . | . . . . . . . . . . Hacking Detections 4 | . . . . 1 1 1 1 . . Full Trace Events 1 | . . . . 1 . . . . . Feedback Events . | . . . . . . . . . . Feedback Blocked . | . . . . . . . . . . Robot Schematics Acquired . | . . . . . . . . . . Robots Built . | . . . . . . . . . . Authchips . | . . . . . . . . . . Time . | . . . . . . . . . . Total Robot Build Rating . | . . . . . . . . . . Part Schematics Acquired . | . . . . . . . . . . Parts Built . | . . . . . . . . . . Authchips . | . . . . . . . . . . Time . | . . . . . . . . . . Total Part Build Rating . | . . . . . . . . . . Parts Repaired . | . . . . . . . . . . Time . | . . . . . . . . . . Parts Recycled . | . . . . . . . . . . Recycled Matter . | . . . . . . . . . . Retrieved Matter . | . . . . . . . . . . Retrieved Components . | . . . . . . . . . . Parts Scanalyzed . | . . . . . . . . . . Part Schematics Acquired . | . . . . . . . . . . Parts Damaged . | . . . . . . . . . . Bothacking | -11 -10 -9 -8 -7 -6 -6 -6 -6 -5 ------------ Run | Jun Mat Mat Mat Fac Fac Ext Cet Arc Fac Used RIF Installer . | . . . . . . . . . . Robots Hacked . | . . . . . . . . . . Non-combat . | . . . . . . . . . . Combat . | . . . . . . . . . . Robot Hacks Applied . | . . . . . . . . . . Relay Couplers Released . | . . . . . . . . . . Fabnet Peak Effective % . | . . . . . . . . . . Robots Rewired 7 | . . . . . . 7 . . . Allies Hacked . | . . . . . . . . . . Hacks Repelled . | . . . . . . . . . . Allies | -11 -10 -9 -8 -7 -6 -6 -6 -6 -5 -------- Run | Jun Mat Mat Mat Fac Fac Ext Cet Arc Fac Total Allies 11 | . . . . . . 11 . . . Largest Group 9 | . . . . . . 9 1 . . Highest-Rated Group 404 | . . . . . . 404 159 . . Highest-Rated Ally 159 | . . . . . . 159 159 . . Total Orders . | . . . . . . . . . . Ally Attacks 108 | . . . . . . 107 1 . . Total Damage 2151 | . . . . . . 2113 38 . . Kills 14 | . . . . . . 13 1 . . Allies Corrupted . | . . . . . . . . . . Allies Melted 1 | . . . . . . . . 1 . Intel | -11 -10 -9 -8 -7 -6 -6 -6 -6 -5 ------- Run | Jun Mat Mat Mat Fac Fac Ext Cet Arc Fac Robot Analysis Total . | . . . . . . . . . . Derelict Logs Recovered . | . . . . . . . . . . Drone Launches . | . . . . . . . . . . Drone Recoveries . | . . . . . . . . . . Exploration | -11 -10 -9 -8 -7 -6 -6 -6 -6 -5 ------------- Run | Jun Mat Mat Mat Fac Fac Ext Cet Arc Fac Turns Passed 1061 | 10 33 112 59 143 141 387 43 95 38 Spaces Moved 1589 | 18 62 212 117 255 268 367 81 135 74 Core 1473 | 18 62 212 117 255 153 366 81 135 74 Treads 1 | . . . . . . 1 . . . Legs . | . . . . . . . . . . Wheels . | . . . . . . . . . . Hover 4 | . . . . . 4 . . . . Flight 111 | . . . . . 111 . . . . Fastest Speed 35 | 50 50 50 50 50 35 50 50 50 50 Average Speed 49 | 50 50 50 50 50 43 50 50 56 50 Slowest Speed 200 | 50 50 50 50 50 60 160 50 200 50 Overloaded Moves . | . . . . . . . . . . Propulsion Burnouts . | . . . . . . . . . . Robots Hopped 2 | . . . . . 2 . . . . Cave-ins Triggered . | . . . . . . . . . . Exploration Rate (%) 30 | 3 22 27 20 12 9 58 53 96 4 Regions Visited 9 Branch Regions 3 Pre-discovered Areas . | . . . . . . . . . . Known Exits Taken 1 | . . . . 1 . . . . . Unknown Exits Taken 8 | 1 1 1 1 . 1 1 1 1 . Scrap Searched . | . . . . . . . . . . Spaces Dug 4 | . . . . 4 . . . . . Terrain Destroyed 4 | . . . . 4 . . . . . Melee 4 | . . . . 4 . . . . . Projectile . | . . . . . . . . . . AOE . | . . . . . . . . . . Terrain Rammed . | . . . . . . . . . . Walls Destroyed . | . . . . . . . . . . Machines Disabled . | . . . . . . . . . . Actions | -11 -10 -9 -8 -7 -6 -6 -6 -6 -5 --------- Run | Jun Mat Mat Mat Fac Fac Ext Cet Arc Fac Total 1835 | 18 63 215 116 262 286 567 82 152 74 Wait 100 | . . . . . 6 79 . 15 . Move 1576 | 17 61 211 116 254 263 366 80 134 74 Hop 2 | . . . . . 2 . . . . Pick Up 6 | . . 1 . 1 3 1 . . . Fast Attach 19 | . . 3 . 2 8 4 . 2 . Attach 1 | . . . . 1 . . . . . Detach 2 | . . . . . 2 . . . . Swap . | . . . . . . . . . . Drop 3 | . . . . . 1 1 . 1 . Fire . | . . . . . . . . . . Melee 4 | . . . . 4 . . . . . Ram 9 | 1 2 . . . 1 3 2 . . Kick . | . . . . . . . . . . Crush . | . . . . . . . . . . Escape Stasis 30 | . . . . . . 30 . . . Rewire 83 | . . . . . . 83 . . . Trap . | . . . . . . . . . . Miscellaneous . | . . . . . . . . . . Route ------- -11/Junkyard -10/Materials -9/Materials -8/Materials (discovered 2 exits: *Fac / [*Sto]) -7/Factory (discovered 4 exits: *Fac x4) -6/Factory -6/Extension (discovered 2 exits: [*Fac] / *Cet) -6/Cetus -6/Archives (discovered 3 exits: [*Fac] / [*Hub x2]) -5/Factory History --------- Turn | Location | Event 3 | -11/Junkyard | Discovered new exit (range 15) 11 | -11/Junkyard | Entered Materials 39 | -10/Materials | Discovered new exit (range 10) 44 | -10/Materials | Entered another Materials area 44 | -9/Materials | Evolved 2 slots: Propulsion x1, Utility x1 154 | -9/Materials | Discovered new exit (range 5) 156 | -9/Materials | Entered another Materials area 156 | -8/Materials | Evolved 2 slots: Propulsion x1, Utility x1 195 | -8/Materials | Discovered new exit (range 16) 208 | -8/Materials | Discovered new exit (range 15) 215 | -8/Materials | Entered Factory 215 | -7/Factory | Evolved 2 slots: Propulsion x1, Utility x1 267 | -7/Factory | Identified exit to Factory 309 | -7/Factory | Build established: Mutant 332 | -7/Factory | Assembled infested ambush trap array 333 | -7/Factory | Core integrity fell below 50% 358 | -7/Factory | Entered another Factory area 358 | -6/Factory | Evolved 2 slots: Propulsion x1, Utility x1 392 | -6/Factory | Spotted B-75 Beast 495 | -6/Factory | Discovered new exit (range 10) 499 | -6/Factory | Entered Extension 517 | -6/Extension | Rescued a captive Derelict 539 | -6/Extension | Rescued a captive Derelict 552 | -6/Extension | Rescued A7 565 | -6/Extension | Rescued a captive Derelict 805 | -6/Extension | Spotted B-75 Beast 811 | -6/Extension | Spotted B-75 Beast 856 | -6/Extension | Discovered new exit (range 16) 856 | -6/Extension | Discovered new exit (range 16) 886 | -6/Extension | Entered Cetus 886 | -6/Cetus | Accompanied by 1 ally (A7) 891 | -6/Cetus | Acquired a Cetus Manufacturing Module code from A7 892 | -6/Cetus | Spotted Cetus Guard 892 | -6/Cetus | Spotted Cetus Guard 892 | -6/Cetus | Spotted Cetus Guard 892 | -6/Cetus | Spotted Cetus Guard 914 | -6/Cetus | Started Cetus Manufacturing Module 918 | -6/Cetus | Discovered new exit (range 22) 929 | -6/Cetus | Entered Archives 935 | -6/Archives | Met Zhirov 936 | -6/Archives | Discovered new exit (range 22) 938 | -6/Archives | Discovered new exit (range 21) 941 | -6/Archives | Reinforcements dispatched to Archives 942 | -6/Archives | Read partially decrypted archive contents 951 | -6/Archives | Unable to access archive contents 962 | -6/Archives | Discovered new exit (range 21) 986 | -6/Archives | Reinforcements dispatched to Archives 988 | -6/Archives | Zhirov warped through subspace 1006 | -6/Archives | Zhirov detonated Archives 1007 | -6/Archives | Core integrity fell below 50% 1024 | -6/Archives | Entered Factory 1024 | -5/Factory | Evolved 2 slots: Propulsion x1, Utility x1 1037 | -5/Factory | Lost 8 parts (6n2u) 1062 | -5/Factory | Self-destructed Last Messages --------------- 00995_ Lgt. Treads destroyed. 00995_ Archive Terminal disabled. 00996_ Lgt. Treads destroyed. 00996_ Dropped Broken Imp. Arc Thrower. 00998_ Slug penetrates Wall. 00998_ Imp. Light Armor Plating destroyed. 00998_ Slug penetrates Wall. 00999_ Imp. Gravmag System destroyed. 01006_ O-32 Director destroyed. 01006_ Y-54 Guardian destroyed. 01006_ Enh. Biometal Leg destroyed. 01006_ Imp. Gravmag System destroyed. 01006_ Enh. Optical Array destroyed. 01007_ The unstable cave ceiling collapses. PARAMETERS=PROPULSION+1,UTILITY+1 LOCATION=UNKNOWN GOAL=ESCAPE 01041_ Triggered Proton Bomb Trap. 01041_ A bubble of electromagnetic force engulfs the area. 01041_ Door malfunctions. Map ----- +----------------------------------------------------+ | ?????????????????????????????????? | | ?????????????????????????????????? | | ?????????????????????????????????? | | ?????????????????????????????????? | | ?????????????????????????????????? | | ?????????????????????????????????? | | ?????????????????????????????????? | | ?????????????????????????????????? | | ?????????????????????????????????? | | ?????????????????????????????????? | | ##???????????????????????????????? | | ???????????????????????????????? | | ???????????????????????????????? | | ???????????????????????????????? | | """"????????????????????????????? | | """""???????????????????######### | | #????????????????? # | | """ #????????????????# # | | """"" #????????????????# # | | """"" ?????????????????# # | | ???????????????????# " # | | ????????????????????# " # | | +#+###################### " # | | # t " # | | # " # | | u /@ " # | | # "" " # | | # "" " # | | #################### # "" " # | | #??????????????????# # "Y ? | | #????????#?????????# # "" ? | | #???????? ????????# # "" # | | #???????? ????????# # ""? ? | | #????????" """?????# # ??? ??? | | #???????"" """? ???# ###??????? | | #???????"" """? ??? ?????????? | | #??????? ??? ?????????? | | #????????" | !????+?????????? | | ######???" ??????????????? | | +???? " ???????????????? | | #???? "R???????????????? | | #????? "????????????????? | | """""" #????? ????????????????? | | """""" #######+###########??????? | | """""" #??????? | | """""" #??????? | | #??????? | | #??????? | | #??????? | | ###############+###########??????? | +----------------------------------------------------+ Best States ------------- Heat Dissipation 40 Energy Generation 5 Energy Capacity 100 Matter Stores 300 Matter Capacity 300 Sight Range 22 Terrain Scan Density 10 Armor Coverage 150 Core Shielding 20 Evasion (%) 63 Target Analysis 5 Recoil Reduction 1 Item Schematics ----------------- None Robot Schematics ------------------ None Fabricated ------------ Nothing Alien Tech Used ----------------- None Achievements -------------- None Challenges ------------ None Game ------ Seed particleneutrinoderivative Manual? 1 Play Time 00:21:31 Cumulative 236.3 hours Start 2023.05.23 @ 18:44:23 End 2023.05.23 @ 19:19:27 Sessions 1 Manual Loads 0 Difficulty Rogue Special Mode None Game No. 706 Rogue 706 Adventurer 0 Explorer 0 Win Type - Total 10 Types 8/0/1/1/0/0/0/0/0 Lore% 86 Gallery% 82 Achievement% 73 Wizard Run 0 Options --------- ASCII 0 Keyboard 0 Movement Numpad Keybinds 0 Fullscreen 1 Font 16/SmallcapsGlow Map View 75x55 Tactical HUD 1 Map Filters NONE Filters NONE Steam 1 RUN: 29bec1ad-8e8b-437e-a064-aecb3f841929